[Event "Djerba Festival Blitz 2025"]
[Site "Djerba"]
[Date "2025.02.21"]
[Round "2.23"]
[White "Rekik Ismail"]
[Black "Minde, Baptiste"]
[Result "0-1"]
[ECO "A38"]
[WhiteElo "2006"]
[BlackElo "1896"]
[PlyCount "120"]
[EventDate "2025.02.15"]
[EventType "swiss"]
[EventCountry "TUN"]
[TimeControl "180+3"]

1. c4 {[%emt 0:00:03]} c5 {[%emt 0:00:03]} 2. Nc3 {[%emt 0:00:01]} Nc6 {[%emt 0:00:06]} 3. g3 {[%emt 0:00:02]} g6 {[%emt 0:00:05]} 4. Bg2 {[%emt 0:00:02]} d6 {[%emt 0:00:04]} 5. Nf3 {[%emt 0:00:02]} Bg7 {[%emt 0:00:02]} 6. O-O {[%emt 0:00:02]} Nf6 {[%emt 0:00:06]} 7. Rb1 {[%emt 0:00:02]} Nd7 {[%emt 0:00:04]} 8. a3 {[%emt 0:00:05]} a5 {[%emt 0:00:03]} 9. d3 {[%emt 0:00:03]} Nf8 {[%emt 0:00:02]} 10. Ne1 {[%emt 0:00:05]} e5 {[%emt 0:00:05]} 11. Bd2 {[%emt 0:00:02]} Ne6 {[%emt 0:00:02]} 12. Nc2 {[%emt 0:00:02]} O-O {[%emt 0:00:04]} 13. b4 {[%emt 0:00:02]} axb4 {[%emt 0:00:05]} 14. axb4 {[%emt 0:00:02]} Ned4 {[%emt 0:00:17]} 15. bxc5 {[%emt 0:00:07]} dxc5 {[%emt 0:00:04]} 16. e3 {[%emt 0:00:12]} Bg4 {[%emt 0:00:10]} 17. f3 {[%emt 0:00:18]} Nxc2 {[%emt 0:00:08]} 18. Qxc2 {[%emt 0:00:06]} Bf5 {[%emt 0:00:07]} 19. Nd5 {[%emt 0:00:07]} Ra3 {[%emt 0:00:24]} 20. Bc3 {[%emt 0:00:02]} Na5 {[%emt 0:00:06]} 21. e4 {[%emt 0:00:07]} Be6 {[%emt 0:00:10]} 22. Qb2 {[%emt 0:00:02]} Rb3 {[%emt 0:00:05]} 23. Bxa5 {[%emt 0:00:02]} Rxb2 {[%emt 0:00:06]} 24. Bxd8 {[%emt 0:00:02]} Rxb1 {[%emt 0:00:06]} 25. Rxb1 {[%emt 0:00:04]} Rxd8 {[%emt 0:00:03]} 26. Rxb7 {[%emt 0:00:02]} Ra8 {[%emt 0:01:44]} 27. Rb2 {[%emt 0:00:13]} Bh6 {[%emt 0:00:00]} 28. Kf2 {[%emt 0:00:02]} Ra3 {[%emt 0:00:00]} 29. Bf1 {[%emt 0:00:07]} Bc1 {[%emt 0:00:00]} 30. Rb1 {[%emt 0:00:12]} Ra2+ {[%emt 0:00:00]} 31. Be2 {[%emt 0:00:02]} Bb2 {[%emt 0:00:00]} 32. f4 {[%emt 0:00:25]} Bd4+ {[%emt 0:00:00]} 33. Ke1 {[%emt 0:00:02]} exf4 {[%emt 0:00:00]} 34. gxf4 {[%emt 0:00:02]} Kg7 {[%emt 0:00:00]} 35. e5 {[%emt 0:00:29]} h5 {[%emt 0:00:00]} 36. h4 {[%emt 0:00:05]} Bf5 {[%emt 0:00:00]} 37. Ne7 {[%emt 0:00:17]} Bh3 {[%emt 0:00:00]} 38. Nc6 {[%emt 0:00:05]} Bc3+ {[%emt 0:00:00]} 39. Kd1 {[%emt 0:00:06]} Rd2+ {[%emt 0:00:00]} 40. Kc1 {[%emt 0:00:12]} Rxe2 {[%emt 0:00:42]} 41. Rb7 Bg2 {[%emt 0:00:00]} 42. Nd8 {[%emt 0:00:12]} Bxb7 {[%emt 0:00:00]} 43. Nxb7 {[%emt 0:00:02]} Bd4 {[%emt 0:00:00]} 44. Nd6 {[%emt 0:00:04]} Rf2 {[%emt 0:00:00]} 45. Ne8+ {[%emt 0:00:03]} Kf8 {[%emt 0:00:00]} 46. Nf6 {[%emt 0:00:02]} Rxf4 {[%emt 0:00:00]} 47. Nd5 {[%emt 0:00:06]} Rf1+ {[%emt 0:00:02]} 48. Kc2 {[%emt 0:00:01]} Bxe5 {[%emt 0:00:03]} 49. Kb3 {[%emt 0:00:04]} Rh1 {[%emt 0:00:04]} 50. Ka4 {[%emt 0:00:02]} Rxh4 {[%emt 0:00:03]} 51. Kb5 {[%emt 0:00:01]} Bd4 {[%emt 0:00:02]} 52. Nb6 {[%emt 0:00:05]} Rh3 {[%emt 0:00:04]} 53. Nd7+ {[%emt 0:00:07]} Ke7 {[%emt 0:00:02]} 54. Kc6 {[%emt 0:00:02]} Rxd3 {[%emt 0:00:04]} 55. Nb6 {[%emt 0:00:02]} h4 {[%emt 0:00:04]} 56. Nd5+ {[%emt 0:00:02]} Ke6 {[%emt 0:00:02]} 57. Nf4+ {[%emt 0:00:01]} Kf5 {[%emt 0:00:03]} 58. Nxd3 {[%emt 0:00:03]} h3 {[%emt 0:00:02]} 59. Nc1 {[%emt 0:00:17]} h2 {[%emt 0:00:22]} 60. Ne2 h1=Q+ {[%emt 0:00:00] Ng3+} 0-1

[Event "Djerba Festival Blitz 2025"]
[Site "Djerba"]
[Date "2025.02.21"]
[Round "2.24"]
[White "Hafsa, Yessine"]
[Black "Gemelli, Romain"]
[Result "1-0"]
[ECO "C78"]
[WhiteElo "1503"]
[BlackElo "2203"]
[PlyCount "88"]
[EventDate "2025.02.15"]
[EventType "swiss"]
[EventCountry "TUN"]
[TimeControl "180+3"]

1. e4 {[%emt 0:00:03]} e5 {[%emt 0:00:04]} 2. Nf3 {[%emt 0:00:02]} Nc6 {[%emt 0:00:02]} 3. Bb5 {[%emt 0:00:03]} a6 {[%emt 0:00:02]} 4. Ba4 {[%emt 0:00:02]} Nf6 {[%emt 0:00:02]} 5. O-O {[%emt 0:00:03]} b5 {[%emt 0:00:02]} 6. Bb3 {[%emt 0:00:01]} Bc5 {[%emt 0:00:02]} 7. a4 {[%emt 0:00:03]} Rb8 {[%emt 0:00:02]} 8. Nxe5 {[%emt 0:00:06]} Nxe5 {[%emt 0:00:03]} 9. d4 {[%emt 0:00:02]} Bxd4 {[%emt 0:00:03]} 10. Qxd4 {[%emt 0:00:03]} d6 {[%emt 0:00:02]} 11. f4 {[%emt 0:00:03]} Nc6 {[%emt 0:00:03]} 12. Qc3 {[%emt 0:00:03]} Ne7 {[%emt 0:00:03]} 13. e5 {[%emt 0:01:07]} Ne4 {[%emt 0:00:03]} 14. Qf3 {[%emt 0:00:23]} Bb7 {[%emt 0:00:04]} 15. Qg4 {[%emt 0:00:09]} g6 {[%emt 0:00:25]} 16. Be3 {[%emt 0:00:10]} Nf5 {[%emt 0:00:23]} 17. Bf2 {[%emt 0:00:22]} c5 {[%emt 0:00:17]} 18. c3 {[%emt 0:00:21]} c4 {[%emt 0:00:21]} 19. Bc2 {[%emt 0:00:02]} Nxf2 {[%emt 0:00:02]} 20. Rxf2 {[%emt 0:00:01]} Ne3 {[%emt 0:00:03]} 21. Qe2 {[%emt 0:00:09]} Nxc2 {[%emt 0:00:04]} 22. exd6+ {[%emt 0:00:10]} Kf8 {[%emt 0:00:05]} 23. Qxc2 {[%emt 0:00:06]} Qxd6 {[%emt 0:00:03]} 24. Nd2 {[%emt 0:00:02]} Kg7 {[%emt 0:00:16]} 25. Rd1 {[%emt 0:00:02]} Rbd8 {[%emt 0:00:09]} 26. Rff1 {[%emt 0:00:02]} Qc6 {[%emt 0:00:03]} 27. Nf3 {[%emt 0:00:02]} f6 {[%emt 0:00:31]} 28. Nd4 {[%emt 0:00:03]} Qb6 {[%emt 0:00:24]} 29. Kh1 {[%emt 0:00:07]} Rhe8 {[%emt 0:00:02]} 30. f5 {[%emt 0:00:05]} Be4 {[%emt 0:00:22]} 31. Qc1 {[%emt 0:00:06]} Bd3 {[%emt 0:00:08]} 32. Rf4 {[%emt 0:00:22]} Rd5 {[%emt 0:00:04]} 33. Ne6+ {[%emt 0:00:05]} Rxe6 {[%emt 0:00:04]} 34. fxe6 {[%emt 0:00:03]} Qxe6 {[%emt 0:00:02]} 35. Re1 {[%emt 0:00:02]} Re5 {[%emt 0:00:07]} 36. Rxe5 {[%emt 0:00:05]} fxe5 {[%emt 0:00:02]} 37. Rf2 {[%emt 0:00:04]} Qg4 {[%emt 0:00:12]} 38. h3 {[%emt 0:00:09]} Qh4 {[%emt 0:00:02]} 39. Qe3 {[%emt 0:00:02]} e4 {[%emt 0:00:08]} 40. Qd4+ {[%emt 0:00:01]} Kh6 {[%emt 0:00:02]} 41. Qb6 {[%emt 0:00:04]} Qg5 {[%emt 0:00:08]} 42. Kg1 {[%emt 0:00:03]} e3 {[%emt 0:00:03]} 43. Rf3 {[%emt 0:00:03]} e2 44. Re3 {[%emt 0:00:09]} Qd8 {[%emt 0:00:06]} 1-0

[Event "Djerba Festival Blitz 2025"]
[Site "Djerba"]
[Date "2025.02.21"]
[Round "2.25"]
[White "Nassr, Lina"]
[Black "Kammoun, Adam"]
[Result "1-0"]
[ECO "D05"]
[WhiteElo "1934"]
[BlackElo "1571"]
[PlyCount "69"]
[EventDate "2025.02.15"]
[EventType "swiss"]
[EventCountry "TUN"]
[TimeControl "180+3"]

1. d4 {[%emt 0:00:03]} d5 {[%emt 0:00:02]} 2. Nf3 {[%emt 0:00:02]} Nf6 {[%emt 0:00:02]} 3. e3 {[%emt 0:00:02]} e6 {[%emt 0:00:02]} 4. Bd3 {[%emt 0:00:02]} c5 {[%emt 0:00:02]} 5. b3 {[%emt 0:00:02]} cxd4 {[%emt 0:00:02]} 6. exd4 {[%emt 0:00:02]} Nc6 {[%emt 0:00:03]} 7. Bb2 {[%emt 0:00:03]} Bd7 {[%emt 0:00:03]} 8. O-O {[%emt 0:00:04]} Qc7 {[%emt 0:00:02]} 9. a3 {[%emt 0:00:02]} Be7 {[%emt 0:00:06]} 10. Nbd2 {[%emt 0:00:03]} h5 {[%emt 0:00:13]} 11. Ne5 {[%emt 0:00:05]} Nxe5 {[%emt 0:00:10]} 12. dxe5 {[%emt 0:00:04]} Ng4 {[%emt 0:00:02]} 13. Nf3 {[%emt 0:00:28]} Rc8 {[%emt 0:00:22]} 14. h3 {[%emt 0:00:06]} Nh6 {[%emt 0:00:10]} 15. c4 {[%emt 0:00:06]} f5 {[%emt 0:00:11]} 16. cxd5 {[%emt 0:00:08]} exd5 {[%emt 0:00:04]} 17. Rc1 {[%emt 0:00:08]} Qb8 {[%emt 0:00:06]} 18. Nd4 {[%emt 0:00:36]} g6 {[%emt 0:00:31]} 19. e6 {[%emt 0:00:09]} Bc6 {[%emt 0:00:12]} 20. Nxc6 {[%emt 0:00:03]} bxc6 {[%emt 0:00:04]} 21. Bxh8 {[%emt 0:00:03]} Bxa3 {[%emt 0:00:18]} 22. Ra1 {[%emt 0:00:11]} Bd6 {[%emt 0:00:04]} 23. Bd4 {[%emt 0:00:05]} Qb4 {[%emt 0:00:07]} 24. Ra4 {[%emt 0:00:09]} Qb8 {[%emt 0:00:17]} 25. Bxa7 {[%emt 0:00:15]} Qb7 {[%emt 0:00:06]} 26. Be3 {[%emt 0:00:03]} Bb8 {[%emt 0:00:02]} 27. Bxh6 {[%emt 0:00:06]} Qc7 {[%emt 0:00:03]} 28. f4 {[%emt 0:00:05]} Ba7+ {[%emt 0:00:15]} 29. Kh1 {[%emt 0:00:04]} Qd6 {[%emt 0:00:10]} 30. Bg5 {[%emt 0:00:05]} Bc5 {[%emt 0:00:03]} 31. Qe2 {[%emt 0:00:08]} Bd4 {[%emt 0:00:13]} 32. Rxd4 {[%emt 0:00:03]} c5 {[%emt 0:00:02]} 33. Ra4 {[%emt 0:00:03]} d4 {[%emt 0:00:03]} 34. Bb5+ {[%emt 0:00:03]} Kf8 {[%emt 0:00:04]} 35. e7+ {[%emt 0:00:03]} 1-0

[Event "Djerba Festival Blitz 2025"]
[Site "Djerba"]
[Date "2025.02.21"]
[Round "2.29"]
[White "Azreug, Lazhar"]
[Black "Boudnani, Brahim"]
[Result "1-0"]
[ECO "B07"]
[WhiteElo "1793"]
[BlackElo "1721"]
[PlyCount "59"]
[EventDate "2025.02.15"]
[EventType "swiss"]
[EventCountry "TUN"]
[TimeControl "180+3"]

1. e4 {[%emt 0:00:03]} d6 {[%emt 0:00:03]} 2. d4 {[%emt 0:00:02]} Nf6 {[%emt 0:00:03]} 3. Nc3 {[%emt 0:00:01]} Nbd7 {[%emt 0:00:02]} 4. Nf3 {[%emt 0:00:02]} c6 {[%emt 0:00:03]} 5. Bf4 {[%emt 0:00:03]} Qc7 {[%emt 0:00:03]} 6. Bd3 {[%emt 0:00:25]} e5 {[%emt 0:00:03]} 7. dxe5 {[%emt 0:00:02]} dxe5 {[%emt 0:00:02]} 8. Bg5 {[%emt 0:00:05]} Be7 {[%emt 0:00:02]} 9. Qd2 {[%emt 0:00:02]} h6 {[%emt 0:00:03]} 10. Bh4 {[%emt 0:00:03]} g5 {[%emt 0:00:05]} 11. Bg3 {[%emt 0:00:02]} b5 {[%emt 0:00:05]} 12. Ne2 {[%emt 0:00:34]} Bb7 {[%emt 0:00:02]} 13. Qc3 {[%emt 0:00:15]} Bd6 {[%emt 0:00:03]} 14. O-O-O {[%emt 0:00:06]} O-O-O {[%emt 0:00:12]} 15. Kb1 {[%emt 0:00:13]} g4 {[%emt 0:00:03]} 16. Nh4 {[%emt 0:00:06]} Nh5 {[%emt 0:00:24]} 17. Nf5 {[%emt 0:00:08]} Nf4 {[%emt 0:00:09]} 18. Nxd6+ {[%emt 0:00:26]} Qxd6 {[%emt 0:00:03]} 19. Bxb5 {[%emt 0:00:11]} Nxe2 {[%emt 0:00:11]} 20. Bxe2 {[%emt 0:00:03]} f6 {[%emt 0:00:06]} 21. Rxd6 {[%emt 0:00:02]} Nb6 {[%emt 0:00:06]} 22. Rhd1 {[%emt 0:00:05]} Rde8 {[%emt 0:00:04]} 23. Rxc6+ {[%emt 0:00:08]} Bxc6 {[%emt 0:00:04]} 24. Qxc6+ {[%emt 0:00:02]} Kb8 {[%emt 0:00:03]} 25. Ba6 {[%emt 0:00:04]} Re7 {[%emt 0:00:06]} 26. Qxf6 {[%emt 0:00:14]} Rhe8 {[%emt 0:00:04]} 27. Qd6+ {[%emt 0:00:10]} Ka8 {[%emt 0:00:03]} 28. Qc6+ {[%emt 0:00:04]} Kb8 {[%emt 0:00:03]} 29. Bxe5+ {[%emt 0:00:02]} Rxe5 {[%emt 0:00:04]} 30. Qb7# {[%emt 0:00:00] Rh8} 1-0

[Event "Djerba Festival Blitz 2025"]
[Site "Djerba"]
[Date "2025.02.21"]
[Round "2.31"]
[White "Bensaid, Brahim"]
[Black "Ben Mbarek, Mohamed"]
[Result "0-1"]
[ECO "B34"]
[WhiteElo "1743"]
[BlackElo "1570"]
[PlyCount "45"]
[EventDate "2025.02.15"]
[EventType "swiss"]
[EventCountry "TUN"]
[TimeControl "180+3"]

1. e4 {[%emt 0:00:03]} c5 {[%emt 0:00:03]} 2. Nf3 {[%emt 0:00:03]} g6 {[%emt 0:00:03]} 3. d4 {[%emt 0:00:02]} cxd4 {[%emt 0:00:03]} 4. Nxd4 {[%emt 0:00:02]} Bg7 {[%emt 0:00:02]} 5. Nc3 {[%emt 0:00:02]} Nc6 {[%emt 0:00:03]} 6. Nxc6 {[%emt 0:00:16]} bxc6 {[%emt 0:00:02]} 7. Be2 {[%emt 0:00:02]} Nf6 {[%emt 0:00:07]} 8. O-O {[%emt 0:00:03]} e5 {[%emt 0:00:04]} 9. Bg5 {[%emt 0:00:04]} O-O {[%emt 0:00:04]} 10. Qd2 {[%emt 0:00:03]} Qb6 {[%emt 0:00:15]} 11. Rab1 {[%emt 0:00:12]} Ba6 {[%emt 0:00:06]} 12. Bxa6 {[%emt 0:00:13]} Qxa6 {[%emt 0:00:02]} 13. Bxf6 {[%emt 0:00:03]} Bxf6 {[%emt 0:00:03]} 14. Qxd7 {[%emt 0:00:02]} Rad8 {[%emt 0:00:06]} 15. Qc7 {[%emt 0:00:07]} Rd2 {[%emt 0:00:15]} 16. b4 {[%emt 0:00:38]} Rxc2 {[%emt 0:00:14]} 17. b5 {[%emt 0:00:03]} cxb5 {[%emt 0:00:25]} 18. Rxb5 {[%emt 0:00:09]} Rxc3 {[%emt 0:00:17]} 19. Qxc3 {[%emt 0:00:34]} Qxb5 {[%emt 0:00:04]} 20. Qc2 {[%emt 0:00:07]} Rd8 {[%emt 0:00:13]} 21. Rb1 {[%emt 0:00:04]} Qd3 {[%emt 0:00:08]} 22. Qxd3 {[%emt 0:00:04]} Rxd3 {[%emt 0:01:30]} 23. Ra1 {[%emt 0:00:10]} 0-1

[Event "Djerba Festival Blitz 2025"]
[Site "Djerba"]
[Date "2025.02.21"]
[Round "2.32"]
[White "Fengal, Zineddine"]
[Black "Chaouech, Oussama"]
[Result "0-1"]
[ECO "D02"]
[WhiteElo "1439"]
[BlackElo "1651"]
[PlyCount "64"]
[EventDate "2025.02.15"]
[EventType "swiss"]
[EventCountry "TUN"]
[TimeControl "180+3"]

1. d4 {[%emt 0:00:03]} d5 {[%emt 0:00:03]} 2. Nf3 {[%emt 0:00:03]} Nf6 {[%emt 0:00:06]} 3. Bf4 {[%emt 0:00:03]} e6 {[%emt 0:00:03]} 4. e3 {[%emt 0:00:02]} Bd6 {[%emt 0:00:03]} 5. Bg3 {[%emt 0:00:02]} Bxg3 {[%emt 0:00:03]} 6. hxg3 {[%emt 0:00:02]} c5 {[%emt 0:00:07]} 7. c3 {[%emt 0:00:02]} cxd4 {[%emt 0:00:05]} 8. exd4 {[%emt 0:00:03]} Nc6 {[%emt 0:00:08]} 9. Bd3 {[%emt 0:00:03]} h6 {[%emt 0:00:10]} 10. Nbd2 {[%emt 0:00:03]} Bd7 {[%emt 0:00:07]} 11. Ne5 {[%emt 0:00:03]} Qc7 {[%emt 0:00:14]} 12. Ndf3 {[%emt 0:00:04]} Ne4 {[%emt 0:00:15]} 13. Qc2 {[%emt 0:00:08]} Nxe5 {[%emt 0:00:19]} 14. Nxe5 {[%emt 0:00:02]} Nf6 {[%emt 0:00:17]} 15. f4 {[%emt 0:00:13]} Bc6 {[%emt 0:00:11]} 16. O-O {[%emt 0:00:15]} h5 {[%emt 0:00:09]} 17. a4 {[%emt 0:00:13]} h4 {[%emt 0:00:08]} 18. gxh4 {[%emt 0:00:05]} Rxh4 {[%emt 0:00:03]} 19. Qf2 {[%emt 0:00:02]} Rh6 {[%emt 0:00:10]} 20. b4 {[%emt 0:00:12]} O-O-O {[%emt 0:00:06]} 21. b5 {[%emt 0:00:07]} Rdh8 {[%emt 0:00:07]} 22. Qb2 {[%emt 0:00:02]} Qxe5 {[%emt 0:00:15]} 23. fxe5 {[%emt 0:00:05]} Ng4 {[%emt 0:00:03]} 24. g3 {[%emt 0:00:18]} Rh1+ {[%emt 0:00:03]} 25. Kg2 {[%emt 0:00:03]} R1h2+ {[%emt 0:00:04]} 26. Kf3 {[%emt 0:00:03]} Rg2 {[%emt 0:01:02]} 27. Qc2 Rxc2 {[%emt 0:00:00]} 28. Kxg4 {[%emt 0:00:06]} Rb2 {[%emt 0:00:00]} 29. Rxf7 {[%emt 0:00:03]} Bd7 {[%emt 0:00:00]} 30. Rxg7 {[%emt 0:00:17]} Rb3 {[%emt 0:00:00]} 31. Bg6 Rxc3 {[%emt 0:00:00]} 32. Rd1 {[%emt 0:00:13]} Rc4 {[%emt 0:00:00]} 0-1

[Event "Djerba Festival Blitz 2025"]
[Site "Djerba"]
[Date "2025.02.21"]
[Round "2.33"]
[White "Sazlik, Mucahit"]
[Black "Mekki, Walid"]
[Result "1-0"]
[ECO "D53"]
[WhiteElo "1672"]
[BlackElo "1578"]
[PlyCount "60"]
[EventDate "2025.02.15"]
[EventType "swiss"]
[EventCountry "TUN"]
[TimeControl "180+3"]

1. d4 {[%emt 0:03:06]} d5 {[%emt 0:00:05]} 2. c4 {[%emt 0:00:00]} dxc4 {[%emt 0:00:04]} 3. Nf3 {[%emt 0:00:00]} Nf6 {[%emt 0:00:03]} 4. Nc3 {[%emt 0:00:00]} e6 {[%emt 0:00:03]} 5. Bg5 {[%emt 0:00:00]} Be7 {[%emt 0:00:02]} 6. e3 {[%emt 0:00:00]} Nbd7 {[%emt 0:00:05]} 7. Bxc4 {[%emt 0:00:00]} b6 {[%emt 0:00:01]} 8. O-O {[%emt 0:00:00]} Bb7 {[%emt 0:00:03]} 9. Rc1 {[%emt 0:00:00]} h6 {[%emt 0:00:02]} 10. Bh4 {[%emt 0:00:00]} g5 {[%emt 0:00:03]} 11. Bg3 {[%emt 0:00:00]} Bd6 {[%emt 0:00:10]} 12. Bxd6 {[%emt 0:00:00]} cxd6 {[%emt 0:00:09]} 13. a3 {[%emt 0:00:00]} g4 {[%emt 0:00:06]} 14. Nd2 {[%emt 0:00:00]} h5 {[%emt 0:00:02]} 15. Bd3 {[%emt 0:00:00]} h4 {[%emt 0:00:06]} 16. Nde4 {[%emt 0:00:00]} d5 {[%emt 0:00:18]} 17. Nd6+ {[%emt 0:00:00]} Ke7 {[%emt 0:00:11]} 18. Nxb7 {[%emt 0:00:00]} Qb8 {[%emt 0:00:07]} 19. Ba6 {[%emt 0:00:00]} g3 {[%emt 0:00:09]} 20. h3 {[%emt 0:00:00]} Qg8 {[%emt 0:00:22]} 21. f3 {[%emt 0:00:00]} Qg5 {[%emt 0:00:22]} 22. Qd3 {[%emt 0:00:00]} e5 {[%emt 0:00:17]} 23. Nb5 {[%emt 0:00:00]} e4 {[%emt 0:00:06]} 24. Qb3 {[%emt 0:00:00]} Rac8 {[%emt 0:00:27]} 25. Qb4+ {[%emt 0:00:29]} Nc5 {[%emt 0:00:24]} 26. dxc5 {[%emt 0:00:05]} bxc5 {[%emt 0:00:04]} 27. Rxc5 {[%emt 0:00:07]} Nd7 {[%emt 0:00:11]} 28. Rxd5+ {[%emt 0:00:05]} Ke8 {[%emt 0:00:10]} 29. Rxg5 {[%emt 0:00:03]} Nf6 {[%emt 0:00:13]} 30. N5d6+ {[%emt 0:00:05]} Kf8 {[%emt 0:00:02]} 1-0

[Event "Djerba Festival Blitz 2025"]
[Site "Djerba"]
[Date "2025.02.21"]
[Round "2.34"]
[White "Chavallard, Yanis"]
[Black "Ferahi, Tarik"]
[Result "1-0"]
[ECO "A20"]
[WhiteElo "1605"]
[BlackElo "1612"]
[PlyCount "51"]
[EventDate "2025.02.15"]
[EventType "swiss"]
[EventCountry "TUN"]
[TimeControl "180+3"]

1. c4 {[%emt 0:00:03]} e5 {[%emt 0:00:03]} 2. g3 {[%emt 0:00:02]} Nf6 {[%emt 0:00:03]} 3. Bg2 {[%emt 0:00:03]} c6 {[%emt 0:00:04]} 4. d4 {[%emt 0:00:02]} exd4 {[%emt 0:00:12]} 5. Qxd4 {[%emt 0:00:03]} Bb4+ {[%emt 0:00:06]} 6. Nc3 {[%emt 0:00:08]} Bxc3+ {[%emt 0:00:14]} 7. Qxc3 {[%emt 0:00:03]} h6 {[%emt 0:00:15]} 8. Nf3 {[%emt 0:00:03]} O-O {[%emt 0:00:04]} 9. O-O {[%emt 0:00:03]} d5 {[%emt 0:00:03]} 10. Bf4 {[%emt 0:00:13]} Ne4 {[%emt 0:00:19]} 11. Qc2 {[%emt 0:00:11]} Bf5 {[%emt 0:00:03]} 12. Rad1 {[%emt 0:00:12]} Nxg3 {[%emt 0:00:19]} 13. Qb3 {[%emt 0:00:12]} Nxe2+ {[%emt 0:00:21]} 14. Kh1 {[%emt 0:00:08]} Nxf4 {[%emt 0:00:02]} 15. cxd5 {[%emt 0:00:10]} Nxg2 {[%emt 0:00:07]} 16. dxc6 {[%emt 0:00:06]} Qf6 {[%emt 0:00:54]} 17. cxb7 {[%emt 0:00:10]} Nc6 {[%emt 0:00:15]} 18. bxa8=Q {[%emt 0:00:04]} Rxa8 {[%emt 0:00:02]} 19. Kxg2 {[%emt 0:00:02]} Qg6+ {[%emt 0:00:06]} 20. Kh1 {[%emt 0:00:06]} Be4 {[%emt 0:00:03]} 21. Rg1 {[%emt 0:00:10]} Qf6 {[%emt 0:00:14]} 22. Rg3 {[%emt 0:00:12]} Rb8 {[%emt 0:00:10]} 23. Qe3 {[%emt 0:00:11]} Bxf3+ {[%emt 0:00:03]} 24. Rxf3 {[%emt 0:00:02]} Qxb2 {[%emt 0:00:09]} 25. Qf4 {[%emt 0:00:11]} f6 {[%emt 0:00:07]} 26. Rc1 {[%emt 0:01:31]} 1-0

[Event "Djerba Festival Blitz 2025"]
[Site "Djerba"]
[Date "2025.02.21"]
[Round "2.35"]
[White "Zerarga, Imene"]
[Black "Feurprier, Matteo"]
[Result "1-0"]
[ECO "C54"]
[WhiteElo "1831"]
[BlackElo "1537"]
[PlyCount "89"]
[EventDate "2025.02.15"]
[EventType "swiss"]
[EventCountry "TUN"]
[TimeControl "180+3"]

1. e4 {[%emt 0:00:03]} e5 {[%emt 0:00:02]} 2. Nf3 {[%emt 0:00:02]} Nc6 {[%emt 0:00:02]} 3. Bc4 {[%emt 0:00:02]} Bc5 {[%emt 0:00:03]} 4. c3 {[%emt 0:00:02]} Nf6 {[%emt 0:00:08]} 5. d3 {[%emt 0:00:02]} d6 {[%emt 0:00:02]} 6. Nbd2 {[%emt 0:00:02]} Bg4 {[%emt 0:00:02]} 7. Nf1 {[%emt 0:00:03]} O-O 8. h3 {[%emt 0:00:03]} Bh5 {[%emt 0:00:05]} 9. Ng3 {[%emt 0:00:02]} Bg6 {[%emt 0:00:17]} 10. O-O {[%emt 0:00:17]} a6 {[%emt 0:00:03]} 11. Bb3 {[%emt 0:00:06]} d5 {[%emt 0:00:10]} 12. Nh4 {[%emt 0:00:21]} dxe4 {[%emt 0:00:06]} 13. Nxg6 {[%emt 0:00:10]} hxg6 {[%emt 0:00:02]} 14. dxe4 {[%emt 0:00:05]} Qxd1 {[%emt 0:00:04]} 15. Rxd1 {[%emt 0:00:03]} Rfd8 {[%emt 0:00:03]} 16. Bg5 {[%emt 0:00:07]} Na5 {[%emt 0:00:22]} 17. Bc2 {[%emt 0:00:18]} Nc4 {[%emt 0:00:02]} 18. b3 {[%emt 0:00:09]} Nd6 {[%emt 0:00:07]} 19. c4 {[%emt 0:00:11]} Rd7 {[%emt 0:00:03]} 20. Bxf6 {[%emt 0:00:09]} gxf6 {[%emt 0:00:02]} 21. Ne2 {[%emt 0:00:05]} Rad8 {[%emt 0:00:06]} 22. Rac1 {[%emt 0:00:05]} f5 {[%emt 0:00:10]} 23. exf5 {[%emt 0:00:07]} Nxf5 {[%emt 0:00:02]} 24. Rxd7 {[%emt 0:00:08]} Rxd7 {[%emt 0:00:02]} 25. Bxf5 {[%emt 0:00:07]} gxf5 {[%emt 0:00:03]} 26. Ng3 {[%emt 0:00:06]} Rd2 {[%emt 0:00:14]} 27. Rf1 {[%emt 0:00:07]} Rxa2 {[%emt 0:00:06]} 28. Nxf5 {[%emt 0:00:02]} Rb2 {[%emt 0:00:04]} 29. Nh6+ {[%emt 0:00:09]} Kg7 {[%emt 0:00:03]} 30. Ng4 {[%emt 0:00:02]} f6 {[%emt 0:00:02]} 31. Rd1 {[%emt 0:00:05]} Bd6 {[%emt 0:00:11]} 32. c5 {[%emt 0:00:09]} Bxc5 {[%emt 0:00:02]} 33. Rd7+ {[%emt 0:00:02]} Kg6 {[%emt 0:00:03]} 34. Rxc7 {[%emt 0:00:03]} Bb6 {[%emt 0:00:04]} 35. Rxb7 {[%emt 0:00:03]} Rxb3 {[%emt 0:00:04]} 36. Rd7 {[%emt 0:00:05]} Bd4 {[%emt 0:00:07]} 37. Rd6 {[%emt 0:00:04]} e4 {[%emt 0:00:05]} 38. Rxa6 {[%emt 0:00:04]} Rb1+ {[%emt 0:00:16]} 39. Kh2 {[%emt 0:00:03]} Be5+ {[%emt 0:00:06]} 40. Nxe5+ {[%emt 0:00:03]} Kf5 {[%emt 0:00:07]} 41. Ng4 {[%emt 0:00:03]} Rb2 {[%emt 0:00:04]} 42. Ra5+ {[%emt 0:00:03]} Ke6 {[%emt 0:00:03]} 43. Ra6+ {[%emt 0:00:03]} Kf7 {[%emt 0:00:04]} 44. Rxf6+ {[%emt 0:00:03]} Ke7 {[%emt 0:00:02]} 45. Rf4 {[%emt 0:00:04]} 1-0

[Event "Djerba Festival Blitz 2025"]
[Site "Djerba"]
[Date "2025.02.21"]
[Round "2.36"]
[White "Doucet, Jean Gabriel"]
[Black "Minde, Timothe"]
[Result "0-1"]
[ECO "C02"]
[WhiteElo "1506"]
[BlackElo "1879"]
[PlyCount "112"]
[EventDate "2025.02.15"]
[EventType "swiss"]
[EventCountry "TUN"]
[TimeControl "180+3"]

1. e4 {[%emt 0:03:06]} e6 2. d4 {[%emt 0:00:03]} d5 {[%emt 0:03:09]} 3. e5 c5 {[%emt 0:00:03]} 4. c3 Qb6 {[%emt 0:00:03]} 5. Nf3 Nc6 6. a3 f6 7. b4 fxe5 {[%emt 0:00:09]} 8. dxe5 c4 {[%emt 0:00:03]} 9. Be3 {[%emt 0:00:21]} Qc7 {[%emt 0:00:03]} 10. Qa4 {[%emt 0:00:03]} Bd7 {[%emt 0:00:03]} 11. b5 {[%emt 0:00:03]} Nxe5 12. Nxe5 {[%emt 0:00:03]} Qxe5 {[%emt 0:00:06]} 13. Qc2 {[%emt 0:00:03]} Nf6 {[%emt 0:00:03]} 14. Nd2 {[%emt 0:00:03]} Ng4 {[%emt 0:00:03]} 15. Be2 {[%emt 0:00:03]} Nxe3 {[%emt 0:00:03]} 16. fxe3 Qxe3 {[%emt 0:00:03]} 17. a4 Bc5 {[%emt 0:00:03]} 18. O-O-O {[%emt 0:00:09]} Qxe2 {[%emt 0:00:03]} 19. Rhe1 {[%emt 0:00:03]} Qd3 {[%emt 0:00:03]} 20. Qxd3 {[%emt 0:00:03]} cxd3 21. Nb3 Bd6 {[%emt 0:00:06]} 22. Rxd3 {[%emt 0:00:06]} O-O {[%emt 0:00:03]} 23. Rf3 {[%emt 0:00:03]} Rxf3 24. gxf3 Bxh2 25. Nc5 {[%emt 0:00:06]} Bf4+ {[%emt 0:00:09]} 26. Kc2 {[%emt 0:00:03]} Be8 {[%emt 0:00:03]} 27. Nxe6 {[%emt 0:00:03]} Bg6+ {[%emt 0:00:03]} 28. Kb2 {[%emt 0:00:03]} Re8 {[%emt 0:00:03]} 29. Re2 {[%emt 0:00:03]} Bf7 {[%emt 0:00:03]} 30. Nxf4 {[%emt 0:00:03]} Rxe2+ {[%emt 0:00:03]} 31. Nxe2 Kf8 {[%emt 0:00:03]} 32. Nf4 {[%emt 0:00:06]} g5 {[%emt 0:00:03]} 33. Nh3 {[%emt 0:00:03]} h6 {[%emt 0:00:03]} 34. Kc2 Bg6+ {[%emt 0:00:03]} 35. Kd2 {[%emt 0:00:06]} Bf5 36. Nf2 Ke7 37. Ke3 Ke6 38. Kd4 Kd6 39. a5 b6 {[%emt 0:00:15]} 40. a6 {[%emt 0:00:15]} h5 {[%emt 0:00:03]} 41. Nh1 {[%emt 0:00:03]} h4 {[%emt 0:00:03]} 42. Nf2 h3 43. Nh1 h2 {[%emt 0:00:06]} 44. Nf2 Bh3 {[%emt 0:00:03]} 45. c4 {[%emt 0:00:12]} Bg2 {[%emt 0:00:03]} 46. cxd5 {[%emt 0:00:03]} Bxf3 47. Ke3 {[%emt 0:00:03]} Bxd5 {[%emt 0:00:06]} 48. Ke2 {[%emt 0:00:03]} h1=Q {[%emt 0:00:03]} 49. Nxh1 Bxh1 {[%emt 0:00:03]} 50. Kd3 Bc6 {[%emt 0:00:03]} 51. bxc6 {[%emt 0:00:09]} Kxc6 {[%emt 0:00:03]} 52. Kc4 {[%emt 0:00:03]} b5+ 53. Kb4 {[%emt 0:00:03]} Kb6 54. Kc3 {[%emt 0:00:03]} Kxa6 {[%emt 0:00:09]} 55. Kd3 Kb6 {[%emt 0:00:03]} 56. Ke3 a5 {[%emt 0:00:03] Kf4} 0-1